bitfinex/quotes_ETHUSD_20250123
["timestamp","ask_amount","ask_price","bid_price","bid_amount"]
[1737609158290,3.1207,3204.5,3203.9,3.91258]
[1737609158604,3.12072,3204.4,3203.9,0.7914]
[1737609158804,3.12057,3204.6,3203.9,3.91258]
[1737609158998,3.12057,3204.6,3204.1,0.7914]
[1737609160408,3.12063,3204.5,3204.1,0.7914]
[1737609160604,3.12063,3204.5,3204.2,0.12392495]
[1737609161694,3.12063,3204.5,3204.3,0.12392495]
[1737609162308,3.12057,3204.6,3204.3,0.12392495]
[1737609162714,3.12061,3204.5,3204.4,0.12392495]
[1737609165813,3.744715,3204.5,3204.4,0.12392495]
[1737609166315,3.12061,3204.5,3204.1,0.7914]
[1737609167795,3.12044,3204.7,3204.2,0.3224321]
[1737609168117,3.12051,3204.6,3204.2,0.3224321]
[1737609168918,3.12051,3204.6,3204.3,0.12400459]
[1737609169322,3.1207,3204.4,3204.3,0.12400459]
[1737609170416,3.1207,3204.4,3203.9,0.323]
[1737609171709,3.1207,3204.4,3203.9,0.31320158]
[1737609171910,3.1207,3204.4,3204.0,0.12402715]
[1737609173429,3.1207,3204.4,3204.1,0.12402715]
[1737609173621,3.1207,3204.4,3204.1,0.91232715]
[1737609174638,3.1207,3204.4,3204.2,0.12402715]
[1737609175940,3.1207,3204.4,3204.3,0.12402715]
[1737609179468,3.744822,3204.4,3204.3,0.12402715]
[1737609183372,4.513322,3204.4,3204.3,0.12402715]
[1737609183741,4.513322,3204.4,3203.5,0.7611]
[1737609183742,3.12139,3203.7,3203.5,0.7611]
[1737609184143,3.12126,3203.9,3203.5,0.7611]
[1737609184343,3.12083,3204.3,3203.7,3.12138]
[1737609184573,3.744832,3204.4,3203.7,3.12138]
[1737609185078,3.744832,3204.4,3203.8,0.12400148]
[1737609185381,3.12092,3204.2,3203.8,0.12400148]
[1737609185743,3.12092,3204.2,3203.9,0.12400148]
[1737609187181,3.12092,3204.2,3204.0,0.12400148]
[1737609187554,0.4513332,3204.3,3204.0,0.12400148]
[1737609187758,3.5721632,3204.3,3204.0,0.12400148]
[1737609188267,3.5721632,3204.3,3204.1,0.12400148]
[1737609188473,3.79018732,3204.2,3204.1,0.12400148]
[1737609217309,3.79018732,3204.2,3204.1,0.32264197]
[1737609218311,3.79018732,3204.2,3204.1,1.13374197]
[1737609218472,3.12058,3204.6,3204.1,1.13374197]
[1737609218926,3.12077,3204.4,3204.1,0.32264197]
[1737609219719,3.12077,3204.4,3204.2,0.12400148]
[1737609220804,3.12077,3204.4,3203.9,0.8111]
[1737609221531,3.12085,3204.3,3203.9,0.8111]
[1737609223038,3.12096,3204.2,3203.9,0.8111]
[1737609224209,3.12108,3204.1,3203.9,0.8111]
[1737609228310,3.12074,3204.4,3203.9,0.8111]
[1737609228512,3.12093,3204.2,3203.9,0.8111]
[1737609228875,3.12101,3204.1,3203.9,0.8111]
[1737609229597,3.12101,3204.1,3204.0,0.12417059]
[1737609230007,3.12093,3204.2,3204.0,0.12417059]
[1737609230318,3.121,3204.1,3204.0,0.12417059]
[1737609230703,3.12093,3204.2,3204.0,0.12417059]
[1737609232034,3.12049,3204.7,3204.1,0.12417059]
[1737609232236,3.12049,3204.7,3204.2,0.8111]
[1737609232937,3.12049,3204.7,3204.3,0.12417059]
[1737609233745,3.12024,3204.9,3204.3,0.12417059]
[1737609234111,3.12024,3204.9,3204.3,3.24491059]
[1737609234317,3.12024,3204.9,3204.4,0.12417059]
[1737609234842,3.12003,3205.1,3204.5,0.8111]
[1737609235037,3.12003,3205.1,3204.6,0.8111]
[1737609235603,3.12003,3205.1,3204.6,0.93527059]
[1737609236132,3.11983,3205.3,3204.7,0.8111]
[1737609236435,3.11997,3205.2,3204.7,0.93527059]
[1737609236634,3.11963,3205.6,3204.8,1.40234001]
[1737609236832,3.11963,3205.6,3205.1,0.8111]
[1737609237437,3.88786,3205.8,3205.2,0.03119896]
[1737609237749,3.11936,3205.8,3205.3,0.8111]
[1737609238405,3.11918,3206.0,3205.4,1.43353639]
[1737609238639,3.11918,3206.0,3205.5,0.8111]
[1737609238938,3.11918,3206.0,3205.5,3.93073]
[1737609239143,3.11918,3206.0,3205.6,0.32]
[1737609239325,3.11927,3205.9,3205.6,0.32]
[1737609240308,1.86596561,3206.3,3205.7,0.8111]
[1737609240309,3.11892,3206.3,3205.7,0.8111]
[1737609240558,3.11892,3206.3,3205.7,3.96173256]
[1737609240945,3.11892,3206.3,3205.7,3.93054]
[1737609241609,3.11892,3206.3,3205.7,0.8111]
[1737609241811,3.11931,3205.9,3205.7,0.8111]
[1737609242306,3.11907,3206.1,3205.5,0.8111]
[1737609242539,3.11921,3206.0,3205.5,0.8111]
[1737609242741,3.11907,3206.1,3205.5,0.8111]
[1737609242942,3.11927,3205.9,3205.5,0.8111]
[1737609244654,3.11927,3205.9,3205.5,1.1311]
[1737609245561,3.11907,3206.1,3205.5,1.1311]
[1737609246075,3.11917,3206.0,3205.5,1.1311]
[1737609248856,3.11917,3206.0,3205.5,0.8111]
[1737609249020,3.11917,3206.0,3205.5,1.1301]
[1737609249361,3.11927,3205.9,3205.5,1.1301]
[1737609250966,3.11927,3205.9,3205.5,0.8111]
[1737609251173,3.11927,3205.9,3205.5,1.1301]
[1737609253735,6.23819,3206.1,3205.5,1.1301]
[1737609254479,3.11907,3206.1,3205.5,1.1301]
[1737609254840,6.23821,3206.1,3205.5,1.1301]
[1737609255153,3.11907,3206.1,3205.5,1.1301]
[1737609255348,0.61118265,3206.4,3205.8,3.11932]
[1737609255682,4.41481292,3206.4,3205.8,3.11932]
[1737609256583,3.11887,3206.3,3205.7,0.8269]
[1737609256756,3.11887,3206.3,3205.7,3.94633]
[1737609257650,0.61118265,3206.4,3205.7,3.94633]
[1737609257850,3.11868,3206.5,3205.9,0.8269]
[1737609258245,3.11877,3206.4,3205.9,0.8269]
[1737609263655,3.11867,3206.5,3205.9,5.94614]
[1737609264180,3.11867,3206.5,3206.0,0.12373235]
[1737609264566,3.11877,3206.4,3206.0,0.12373235]
[1737609265991,3.11877,3206.4,3206.1,0.12373235]
[1737609267066,3.1186,3206.6,3206.1,0.12373235]
[1737609267271,3.1186,3206.6,3206.2,0.12373235]
[1737609267477,6.23726,3206.6,3206.2,0.12373235]
[1737609267683,3.11869,3206.5,3206.2,0.12373235]
[1737609268201,3.11869,3206.5,3205.9,7.34658659]
[1737609268571,3.11878,3206.4,3205.9,2.8269]
[1737609269264,3.11868,3206.5,3205.9,7.34655659]
[1737609269676,3.11868,3206.5,3206.0,0.12391624]
[1737609270558,3.11868,3206.5,3206.1,0.12391624]
[1737609271762,3.11868,3206.5,3206.2,0.12391624]
[1737609272960,3.11868,3206.5,3205.9,5.11919]
[1737609273273,3.11868,3206.5,3206.0,0.03118838]
[1737609274197,3.11848,3206.7,3206.0,3.15029838]
[1737609274408,3.11848,3206.7,3206.1,0.12388998]
[1737609275198,3.11857,3206.6,3206.1,0.12388998]
[1737609275693,3.11857,3206.6,3206.2,0.12388998]
[1737609276975,3.11857,3206.6,3206.3,0.12388998]
[1737609277171,3.1184,3206.8,3206.3,0.12388998]
[1737609277399,3.11848,3206.7,3206.3,0.12388998]
[1737609277593,3.1184,3206.8,3206.3,0.12388998]
[1737609278294,3.1184,3206.8,3206.2,3.11893]
[1737609278863,3.1184,3206.8,3206.1,4.51944659]
[1737609279063,3.1184,3206.8,3206.1,4.55063321]
[1737609279283,3.1184,3206.8,3206.2,3.1189]
[1737609280296,3.11849,3206.7,3206.1,4.55068321]
[1737609280606,3.11859,3206.6,3206.1,3.15021662]
[1737609280904,3.11859,3206.6,3206.1,3.11903]
[1737609281802,3.11859,3206.6,3206.2,0.1238698]
[1737609282578,3.11859,3206.6,3206.2,0.4408698]
[1737609282868,3.1184,3206.8,3206.2,0.4408698]
[1737609283073,3.11851,3206.7,3206.2,0.4408698]
[1737609283283,3.11851,3206.7,3206.3,0.1238698]
[1737609284472,3.11857,3206.6,3206.3,0.1238698]
[1737609284667,3.11857,3206.6,3206.4,0.1238698]
[1737609284869,3.11866,3206.5,3206.4,0.1238698]
[1737609285082,4.51912659,3206.5,3206.4,0.1238698]
[1737609286477,4.51912659,3206.5,3205.4,0.1238698]
[1737609286478,3.11913,3206.1,3205.4,0.1238698]
[1737609286683,3.11933,3205.9,3205.4,0.1238698]
[1737609287406,3.11935,3205.8,3205.4,0.1238698]
[1737609287608,3.11933,3205.9,3205.4,0.1238698]
[1737609287815,3.11933,3205.9,3205.5,0.1238698]
[1737609287991,3.11936,3205.8,3205.5,0.1238698]
[1737609288917,3.11936,3205.8,3205.6,0.1238698]
[1737609289221,1.40046659,3206.3,3205.6,0.1238698]
[1737609289423,3.11911,3206.1,3205.6,0.1238698]
[1737609289584,3.11915,3206.0,3205.6,0.1238698]
[1737609290732,3.11915,3206.0,3205.4,3.11964]
[1737609292078,3.11915,3206.0,3205.5,0.12384564]
[1737609293328,3.11915,3206.0,3205.6,0.12384564]
[1737609293476,3.11895,3206.2,3205.6,0.12384564]
[1737609293679,3.11906,3206.1,3205.6,0.12384564]
[1737609294417,3.11906,3206.1,3205.4,3.11964]
[1737609294619,3.63398652,3206.2,3205.6,5.66948]
[1737609294620,3.11895,3206.2,3205.6,5.66948]
[1737609295185,3.11895,3206.2,3205.6,5.70067081]
[1737609295381,3.11895,3206.2,3205.7,0.12380381]
[1737609295720,3.11907,3206.1,3205.7,0.12380381]
[1737609296512,3.11907,3206.1,3205.6,5.66948]
[1737609298209,3.11907,3206.1,3205.6,2.55]
[1737609299312,3.11907,3206.1,3205.7,0.12379191]
[1737609300521,3.11907,3206.1,3205.6,2.55]
[1737609302226,3.1187,3206.5,3205.8,0.55]
[1737609302404,3.11851,3206.7,3206.0,2.55]
[1737609302597,3.11864,3206.6,3206.0,5.66913]
[1737609302815,3.11864,3206.6,3206.0,40.66913]
[1737609303204,3.11864,3206.6,3206.0,5.66913]
[1737609303406,3.11864,3206.6,3206.0,5.70031654]
[1737609303604,3.11866,3206.5,3206.0,5.66913]
[1737609303835,3.11864,3206.6,3206.0,5.66913]
[1737609304194,3.11875,3206.5,3206.0,2.0]
[1737609304636,3.1188,3206.4,3206.0,2.0]
[1737609305125,3.1188,3206.4,3206.1,0.317]
[1737609305728,3.11895,3206.2,3206.1,0.317]
[1737609307628,1.40046659,3206.8,3206.1,0.317]
[1737609307834,3.11884,3206.4,3206.1,0.317]
[1737609309299,3.11858,3206.6,3206.1,0.317]
[1737609310402,3.11837,3206.8,3206.2,3.11893]
[1737609310802,3.11847,3206.7,3206.2,3.11893]
[1737609310997,3.11847,3206.7,3206.1,0.317]
[1737609311527,3.11847,3206.7,3206.1,3.43601]
[1737609312320,3.1183,3206.9,3206.1,3.43601]
[1737609312497,3.11841,3206.8,3206.2,0.12379968]
[1737609313631,3.11841,3206.8,3206.3,0.12379968]
[1737609314022,3.11847,3206.7,3206.3,0.12379968]
[1737609314734,3.11789,3207.3,3206.6,3.1185]
[1737609314903,0.311789,3207.2,3206.6,3.1185]
[1737609316005,0.311789,3207.2,3206.7,3.24212703]
[1737609316225,4.26777359,3207.5,3206.9,3.11824]
[1737609316435,4.26777359,3207.5,3206.8,3.1183]
[1737609316617,4.26777359,3207.5,3206.9,3.11824]
[1737609317846,3.74377359,3207.5,3206.9,3.11824]
[1737609318815,3.74377359,3207.5,3206.7,4.51892659]
[1737609319346,3.74377359,3207.5,3206.9,3.11826]
[1737609319922,0.62608359,3207.5,3206.9,3.11826]
[1737609320140,3.11768,3207.6,3206.9,3.11826]
[1737609320937,4.51795659,3207.7,3206.9,3.11826]
[1737609321135,4.51795659,3207.7,3206.8,0.03118]
[1737609321373,3.11759,3207.6,3207.0,3.11816]
[1737609321641,3.11749,3207.8,3207.0,3.11816]
[1737609321840,3.1175,3207.7,3207.1,3.11807]
[1737609322544,3.1175,3207.7,3206.9,5.11822]
[1737609322748,3.11769,3207.5,3206.9,2.0]
[1737609324413,3.11769,3207.5,3206.9,5.11826]
[1737609325538,0.7685,3207.4,3206.9,2.0]
[1737609325749,0.7685,3207.4,3207.0,3.11816]
[1737609325949,0.7685,3207.4,3206.9,2.0]
[1737609326258,0.7685,3207.4,3206.9,5.11826]
[1737609328656,0.7685,3207.4,3206.9,2.0]
[1737609328900,0.63716625,3208.0,3207.4,2.0]
[1737609328901,0.7685,3207.9,3207.4,2.0]
[1737609329163,0.7685,3208.0,3207.2,0.8145]
[1737609329357,0.7685,3207.8,3207.1,3.118]
[1737609329862,0.7685,3207.2,3206.7,3.11846]
[1737609330030,0.7685,3207.2,3206.8,3.14953032]
[1737609330231,0.7685,3207.6,3206.9,0.55]
[1737609330433,3.11769,3207.5,3206.9,3.66821]
[1737609330939,3.11769,3207.5,3206.9,3.7915355]
[1737609331147,0.7685,3207.6,3206.9,3.7915355]
[1737609332042,0.7685,3207.6,3207.0,0.1233255]
[1737609332737,0.7685,3207.6,3207.0,4.0559755]
[1737609333069,0.7685,3207.6,3207.0,3.93265]
[1737609333273,0.7685,3207.6,3207.0,3.96382791]
[1737609333477,0.7685,3207.6,3207.0,5.96382791]
[1737609333839,0.7685,3207.6,3207.2,3.1179]
[1737609334043,0.7685,3207.6,3207.3,0.55]
[1737609334269,0.7685,3207.8,3207.3,0.55]
[1737609336051,3.88592,3207.8,3207.3,0.55]
[1737609336259,0.7685,3207.8,3207.3,0.55]
[1737609337479,3.88592,3207.8,3207.0,5.93265]
[1737609337859,0.7685,3207.8,3207.3,3.11786]
[1737609338276,3.88564,3208.1,3207.5,0.7521]
[1737609338980,0.7685,3208.3,3207.6,3.69870212]
[1737609339187,3.11687,3208.4,3207.7,0.7521]
[1737609339476,3.11687,3208.4,3207.8,0.03117026]
[1737609339881,3.11687,3208.4,3207.7,0.7521]
[1737609340462,3.11694,3208.3,3207.7,0.7521]
[1737609340661,3.11694,3208.3,3207.8,0.12338068]
[1737609340863,3.11687,3208.4,3207.8,0.15455097]
[1737609341257,0.63473459,3208.3,3207.8,0.15455097]
[1737609341882,0.63473459,3208.3,3207.8,5.27191097]
[1737609342178,0.63473459,3208.3,3207.9,0.12338068]
[1737609342386,0.63473459,3208.3,3208.0,0.314]
[1737609342990,0.63473459,3208.3,3208.1,0.7521]
[1737609344766,3.11673,3208.5,3208.1,0.7521]
[1737609344966,0.6101304,3208.4,3208.1,0.7521]
[1737609346464,3.2782615,3208.7,3208.1,0.7521]
[1737609346669,0.1617015,3208.7,3208.2,2.55]
[1737609348591,0.1617015,3208.7,3208.3,0.03116558]
[1737609348795,0.1617015,3208.7,3208.2,2.55]
[1737609349290,3.2782415,3208.7,3208.2,2.55]
[1737609349494,3.11662,3208.6,3208.2,2.55]
[1737609349678,3.11679,3208.5,3208.2,2.0]
[1737609349887,3.11669,3208.6,3208.2,2.0]
[1737609350063,6.2334,3208.6,3208.2,2.0]
[1737609350412,3.11676,3208.5,3208.2,2.0]
[1737609351218,3.11682,3208.4,3208.2,2.0]
[1737609351557,0.7685,3208.3,3207.8,0.7521]
[1737609351866,3.11765,3207.6,3207.4,0.314]
[1737609352078,3.11765,3207.6,3207.2,0.20546701]
[1737609352079,3.1178,3207.4,3207.2,0.20546701]
[1737609352685,3.1178,3207.4,3207.1,0.314]
[1737609353591,3.88615,3207.6,3207.1,0.314]
[1737609353798,3.11769,3207.5,3207.1,0.314]
[1737609354389,3.88615,3207.6,3207.2,0.12336329]
[1737609354984,3.88591,3207.8,3207.2,0.12336329]
[1737609355298,3.88591,3207.8,3207.3,0.7521]
[1737609355665,3.11733,3207.9,3207.3,0.7521]
[1737609356177,3.88571,3208.0,3207.3,0.78327465]
[1737609356387,3.88571,3208.0,3207.3,0.7521]
[1737609356961,3.88571,3208.0,3207.4,0.6733595]
[1737609357162,3.88571,3208.0,3207.5,2.0]
[1737609357362,3.11721,3208.0,3207.5,2.0]
[1737609361400,3.11721,3208.0,3207.3,0.7521]
[1737609361594,3.11751,3207.7,3207.6,0.12338356]
[1737609362891,3.88601,3207.7,3207.6,0.12338356]
[1737609363290,3.88601,3207.7,3207.2,0.19751769]
[1737609364090,3.11751,3207.7,3207.2,0.19751769]
[1737609364884,3.11751,3207.7,3207.3,0.12342586]
[1737609365893,3.88581,3207.9,3207.4,0.12342586]
[1737609366706,3.1174,3207.8,3207.4,0.12342586]
[1737609366904,3.88581,3207.9,3207.4,0.12342586]
[1737609367100,7.391771,3207.9,3207.4,0.12342586]
[1737609367308,7.391771,3207.9,3207.2,0.55]
[1737609367309,3.11742,3207.8,3207.2,0.55]
[1737609367734,0.7685,3207.9,3207.1,0.7948]
[1737609367894,3.11766,3207.6,3207.1,1.1088]
[1737609368206,3.11766,3207.6,3207.2,0.32093908]
[1737609369602,3.11766,3207.6,3207.1,0.55]
[1737609369603,3.11766,3207.6,3207.3,0.12343039]
[1737609371006,3.88629,3207.4,3207.3,0.12343039]
[1737609371437,3.1185,3206.7,3206.4,0.96356701]
[1737609371594,3.8868,3206.9,3206.4,0.96356701]
[1737609372031,3.8866,3207.1,3206.4,0.96356701]
[1737609372331,3.8866,3207.1,3206.4,4.08231701]
[1737609373027,3.88643,3207.3,3206.7,0.7581]
[1737609373239,0.7685,3207.5,3206.8,0.55]
[1737609373398,3.11771,3207.5,3207.0,2.55]
[1737609373697,3.7456953,3207.7,3207.1,0.03117762]
[1737609374197,0.6281753,3207.7,3207.2,0.7581]
[1737609374400,0.7685,3208.2,3207.4,0.7581]
[1737609374715,3.88534,3208.4,3207.7,0.7581]
[1737609375011,3.88521,3208.6,3207.8,2.55]
[1737609375235,3.11671,3208.6,3208.0,0.7581]
[1737609375431,0.1617015,3208.7,3208.0,0.7581]
[1737609375638,3.11664,3208.6,3208.0,0.7581]
[1737609375942,0.1617015,3208.7,3208.0,3.8753]
[1737609376146,3.68292465,3208.7,3208.0,3.8753]
[1737609376342,0.1617015,3208.7,3208.1,3.66708]
[1737609376507,0.1617015,3208.7,3208.2,5.11694]
[1737609377321,0.1617015,3208.7,3208.3,0.55]
[1737609378757,0.1617015,3208.7,3208.6,2.55]
[1737609379752,0.1617015,3208.7,3208.6,2.67344307]
[1737609381129,0.1617015,3208.7,3208.6,2.12344307]
[1737609381329,0.1617015,3208.7,3208.6,0.12344307]
[1737609382055,0.1617015,3208.7,3208.4,3.24023307]
[1737609382352,0.1617015,3208.7,3208.6,2.55]
[1737609382516,0.1617015,3208.7,3208.6,6.43492]
[1737609382957,0.1617015,3208.7,3208.6,6.74692]
[1737609383125,0.1617015,3208.7,3208.6,6.87036307]
[1737609384032,0.1617015,3208.7,3208.6,1.75374307]
[1737609384257,0.1617015,3208.7,3208.6,1.20374307]
[1737609384425,0.1617015,3208.7,3208.6,0.43544307]
[1737609384626,3.60602565,3208.7,3208.6,0.12344307]
[1737609384824,3.11679,3208.5,3208.1,0.312]
[1737609385057,3.11698,3208.3,3208.0,0.7683]
[1737609385262,3.11703,3208.2,3207.8,0.312]
[1737609385460,3.11722,3208.0,3207.8,0.312]
[1737609385761,3.11703,3208.2,3207.8,0.312]
[1737609385937,3.11711,3208.1,3207.8,0.312]
[1737609386460,3.11711,3208.1,3207.7,0.55]
[1737609390560,3.11711,3208.1,3207.4,0.312]
[1737609390561,3.11737,3207.9,3207.4,0.312]
[1737609391373,3.11779,3207.4,3207.3,0.312]
[1737609392278,3.11779,3207.4,3207.0,0.7683]
[1737609392869,3.11769,3207.5,3207.0,0.7683]
[1737609394804,3.11751,3207.7,3207.1,0.55]
[1737609394945,0.62830487,3208.0,3207.1,0.55]
[1737609394946,0.62830487,3208.0,3207.1,5.69921863]
[1737609395292,3.11739,3207.9,3207.3,0.55]
[1737609396654,3.11739,3207.9,3207.3,0.58117485]
[1737609396844,3.11739,3207.9,3207.3,0.55]
[1737609397038,3.11739,3207.9,3207.4,0.12331506]
[1737609397244,3.11739,3207.9,3207.5,1.304]
[1737609397445,3.11715,3208.1,3207.5,1.304]
[1737609397446,3.11715,3208.1,3207.5,6.45278484]
[1737609397672,3.11715,3208.1,3207.5,6.42161]
[1737609398538,3.11689,3208.4,3207.5,6.42161]
[1737609398738,3.11696,3208.3,3207.7,3.11748]
[1737609398962,1.40327913,3208.5,3208.0,0.55]
[1737609399165,0.63477913,3208.5,3208.2,0.55]
[1737609399378,0.63477913,3208.5,3208.2,3.667]
[1737609399780,0.63477913,3208.5,3208.2,0.55]
[1737609400982,3.11663,3208.6,3208.2,0.55]
[1737609401182,3.2782315,3208.7,3208.2,0.55]
[1737609401505,0.1617015,3208.7,3208.2,0.55]
[1737609401687,3.11664,3208.6,3208.2,0.55]
[1737609401892,0.1617015,3208.7,3208.2,0.55]
[1737609402094,3.2782315,3208.7,3208.2,0.55]
[1737609402472,3.8961796,3208.7,3208.2,0.55]
[1737609403374,3.2782315,3208.7,3208.2,0.55]
[1737609403571,3.11672,3208.5,3208.2,0.55]
[1737609404773,3.11672,3208.5,3208.1,0.754]
[1737609405108,3.11689,3208.4,3207.8,0.311]
[1737609405306,3.11698,3208.3,3207.8,0.311]
[1737609405601,3.11702,3208.2,3207.8,0.311]
[1737609405782,3.11689,3208.4,3207.9,0.55]
[1737609405982,3.11689,3208.4,3208.0,0.754]
[1737609406970,3.11691,3208.3,3207.9,0.55]
[1737609408110,3.11703,3208.2,3207.9,0.55]
[1737609408514,3.11689,3208.4,3207.9,0.55]
[1737609410009,3.11672,3208.5,3207.9,0.55]
[1737609410208,3.11692,3208.3,3207.9,0.55]
[1737609410416,3.11692,3208.3,3208.0,0.12376864]
[1737609410770,3.11701,3208.2,3208.0,0.12376864]
[1737609411010,3.1171,3208.1,3208.0,0.12376864]
[1737609411804,3.1171,3208.1,3207.5,0.754]
[1737609411805,3.11683,3208.4,3207.9,0.55]
[1737609412003,3.11703,3208.2,3207.9,0.55]
[1737609412904,3.11683,3208.4,3207.9,0.55]
[1737609413218,3.11692,3208.3,3207.9,0.55]
[1737609413578,3.88516,3208.6,3207.9,0.55]
[1737609414218,3.11687,3208.4,3207.9,0.55]
[1737609414405,3.11692,3208.3,3207.9,0.55]
[1737609414580,3.11701,3208.2,3208.1,0.55]
[1737609414784,3.740398,3208.2,3208.1,0.55]
[1737609415280,3.11701,3208.2,3208.1,0.55]
[1737609415685,3.11701,3208.2,3207.9,0.55]
[1737609416695,3.11687,3208.4,3207.9,0.55]
[1737609418525,3.11687,3208.4,3208.1,0.55]
[1737609419817,3.11692,3208.3,3207.9,0.55]
[1737609422830,3.11692,3208.3,3208.1,0.55]
[1737609423128,0.1617015,3208.7,3208.1,0.55]
[1737609423304,0.1617015,3208.7,3208.3,0.55]
[1737609423305,3.2782915,3208.7,3208.3,0.55]
[1737609424097,3.2782915,3208.7,3208.6,1.304]
[1737609424098,0.1617015,3208.7,3208.6,1.304]
[1737609424299,0.1617015,3208.7,3208.6,0.55]
[1737609425599,0.1617015,3208.7,3208.6,0.67393575]
[1737609425894,0.1617015,3208.7,3208.6,1.47793575]
[1737609427028,0.1617015,3208.7,3208.6,1.67664987]
[1737609427340,3.2782215,3208.7,3208.6,0.87264987]
[1737609427546,3.99454365,3208.7,3208.6,0.87264987]
[1737609428033,3.99454365,3208.7,3208.6,0.67393575]
[1737609428250,0.87802365,3208.7,3208.6,0.67393575]
[1737609428537,0.1617015,3208.7,3208.6,0.67393575]
[1737609428903,3.2782215,3208.7,3208.6,0.67393575]
[1737609429324,0.1617015,3208.7,3208.6,0.67393575]
[1737609430654,3.2782215,3208.7,3208.6,0.67393575]
[1737609430940,0.1617015,3208.7,3208.6,0.67393575]
[1737609431518,0.1617015,3208.7,3208.6,0.55]
[1737609431743,0.55177101,3208.7,3208.6,0.55]
[1737609432308,3.66829101,3208.7,3208.6,0.55]
[1737609432512,0.7685,3208.5,3207.8,0.804]
[1737609432712,3.88531,3208.5,3207.8,1.114]
[1737609433015,0.1617015,3208.7,3208.1,2.0]
[1737609433244,0.1617015,3208.7,3208.1,2.03116723]
[1737609433405,0.1617015,3208.7,3208.3,0.55]
[1737609433613,0.1617015,3208.7,3208.3,3.69802718]
[1737609434212,0.1617015,3208.7,3208.5,0.55]
[1737609434964,0.1617015,3208.7,3208.6,6.47062]
[1737609435440,0.1617015,3208.7,3208.6,6.79339799]
[1737609435845,0.1617015,3208.7,3208.6,3.67677799]
[1737609436545,0.1617015,3208.7,3208.6,6.79339799]
[1737609442166,0.9302015,3208.7,3208.6,2.87277799]
[1737609442335,0.9302015,3208.7,3208.6,0.32277799]
[1737609442531,4.45139165,3208.7,3208.6,0.32277799]
[1737609443366,0.9302015,3208.7,3208.6,0.32277799]
[1737609443570,0.1617015,3208.7,3208.3,0.74864033]
[1737609444334,3.2782315,3208.7,3208.3,0.74864033]
[1737609444771,3.2782315,3208.7,3208.5,0.55]
[1737609444972,3.11662,3208.6,3208.4,0.32268238]
[1737609445173,3.88522,3208.5,3208.4,0.32268238]
[1737609445359,0.7685,3208.5,3208.4,0.32268238]
[1737609445564,3.11667,3208.6,3208.5,0.55]
[1737609446273,3.11667,3208.6,3208.2,0.55]
[1737609447977,3.11667,3208.6,3208.4,0.55]
[1737609448342,0.1617015,3208.7,3208.4,0.55]
[1737609448543,3.2782315,3208.7,3208.4,0.55]
[1737609448840,3.8852,3208.6,3208.4,0.55]
[1737609449066,3.11672,3208.5,3208.4,0.55]
[1737609449670,3.11672,3208.5,3208.4,0.67420766]
[1737609450455,3.88522,3208.5,3208.4,0.12420766]
[1737609450866,6.88522,3208.5,3208.4,0.12420766]
[1737609451180,3.8859,3207.8,3207.7,0.19881579]
[1737609451381,3.8859,3207.8,3207.7,0.74881579]
[1737609451780,3.8859,3207.8,3207.7,0.55]
[1737609452073,3.8859,3207.8,3207.1,3.16757654]
[1737609452274,3.1173,3207.9,3207.2,3.66789]
[1737609452467,3.1173,3207.9,3207.2,3.69906637]
[1737609452670,3.1173,3207.9,3207.7,0.12426211]
[1737609452881,3.817591,3207.9,3207.7,0.12426211]
[1737609453183,3.1173,3207.9,3207.7,0.12426211]
[1737609454277,3.1173,3207.9,3207.6,0.55]
[1737609455387,3.11749,3207.7,3207.6,0.55]
[1737609455890,3.11749,3207.7,3207.4,0.55]
[1737609456754,3.1173,3207.9,3207.4,0.55]
[1737609457090,3.87849866,3207.9,3207.6,0.55]
[1737609457285,3.11742,3207.8,3207.6,0.55]
[1737609458189,3.11742,3207.8,3207.4,0.55]
[1737609458784,3.11749,3207.7,3207.4,0.55]
[1737609459159,3.11732,3207.9,3207.6,0.55]
[1737609459388,3.11743,3207.8,3207.6,0.55]
[1737609459590,3.740905,3207.8,3207.3,0.19883945]
[1737609459885,3.11872,3206.5,3205.7,6.05369073]
[1737609460089,3.11872,3206.5,3205.7,9.17313073]
[1737609460402,3.11889,3206.3,3205.7,9.48313073]
[1737609460587,3.11872,3206.5,3205.8,3.11934]
[1737609461098,3.11872,3206.5,3205.9,3.26689073]
[1737609461464,3.11876,3206.4,3205.9,3.39078949]
[1737609461672,3.11892,3206.3,3205.9,3.39078949]
[1737609462786,3.11867,3206.5,3206.0,0.55]
[1737609463162,3.11892,3206.3,3206.0,0.67389876]
[1737609463363,0.62966552,3206.7,3206.0,0.67389876]
[1737609463671,3.11896,3206.2,3206.0,0.67389876]
[1737609464234,3.11896,3206.2,3206.0,0.55]
[1737609464715,3.11874,3206.5,3206.0,0.55]
[1737609464716,3.11885,3206.4,3206.0,0.55]
[1737609464917,3.11895,3206.3,3205.8,0.55]
[1737609465220,3.11895,3206.3,3205.7,3.0968]
[1737609465221,3.11947,3205.7,3205.3,0.309]
[1737609465420,3.11968,3205.5,3205.3,0.309]
[1737609465597,3.11968,3205.5,3205.2,0.7868]
[1737609465915,3.11975,3205.4,3205.2,0.7868]
[1737609466216,3.1198,3205.4,3204.9,0.7868]
[1737609466419,3.11955,3205.6,3204.9,3.90701]
[1737609466828,3.11945,3205.7,3205.0,3.12008]
[1737609467386,3.11958,3205.6,3205.0,3.67011]
[1737609469405,3.11958,3205.6,3205.0,0.55]
[1737609471203,3.11946,3205.7,3205.2,0.55]
[1737609471818,3.11946,3205.7,3205.4,0.55]
[1737609472242,3.75252481,3206.1,3205.4,0.55]
[1737609472454,3.11888,3206.3,3205.7,0.7868]
[1737609472626,3.11867,3206.5,3205.8,0.55]